{"text_format":"1","workbook":"xlsx","n_sheets":2,"sheets":["Portada","Muestreo Transectual NO Pond"],"not_rendered":{"charts":1,"images":4,"macros":1,"external_links":0,"defined_names":0,"comments":0,"pivot_tables":0},"unopened":[],"bounds":{"document_bytes":16777216,"sheet_cells":100000,"rows_first":2000,"rows_last":500,"rows_between":2000,"halvings":0,"cell_chars":16384,"cell_head_chars":4096},"cells_cut":0,"cells_raw":0,"read":"whole","date_system":"1900"}

{"sheet":"Portada","index":0,"n_rows":29,"n_cols":1,"rows_kept":29,"cut":false,"hidden":false,"merged":[[26,0,26,10],[27,0,27,10],[28,0,28,10]]}
[]
[]
[]
[]
[]
[]
[]
[]
[]
[]
[]
[]
[]
[]
[]
[]
[]
[]
[]
[]
[]
[]
[]
[]
[]
[]
["Actualización: Enero, 2015."]
["Dr. Gustavo Mora Aguilera"]
["Coordinador-LANREF"]

{"sheet":"Muestreo Transectual NO Pond","index":1,"n_rows":30,"n_cols":147,"rows_kept":30,"cut":false,"hidden":false,"merged":[[1,9,1,11],[9,14,9,15],[8,14,8,15],[7,13,7,15],[4,2,4,4],[6,2,6,4],[8,2,8,4],[12,2,12,4],[14,2,14,4],[2,2,2,4],[29,3,29,4],[27,13,27,15],[29,13,29,15],[13,2,13,4],[28,13,28,15],[16,1,16,10],[24,3,24,8]]}
["Criterios del Transecto:"]
[null,null,null,null,null,null,null,null,null,"          Ecuaciones de cálculo"]
[null,"Fecha de muestreo:","2015-01-10",null,null,null,"Indicar Sitios por Transecto",null,null,"1. Ecuación general"]
[null,null,null,null,null,null,"Ni =",9,null,null,null,null,null,null,null,null,null,null,null,null,null,null,null,null,null,null,null,null,null,null,null,null,null,null,null,null,null,null,null,null,null,null,null,null,null,null,null,null,null,null,null,null,null,null,null,null,null,null,null,null,null,null,null,null,null,null,null,null,null,null,null,null,null,null,null,null,null,null,null,null,null,null,null,null,null,null,null,null,null,null,null,null,null,null,null,null,null,null,null,null,null,null,null,null,null,null,null,null,null,null,null,null,null,null,null,null,null,null,null,null,null,null,null,null,null,null,null,null,null,null,null,null,null,null,null,null,null,null,null,null,null,null,null,null,null,null,3]
[null,"Nombre del Técnico:",null,null,null,null,null,null,null,null,null,null,null,null,null,null,null,null,null,null,null,null,null,null,null,null,null,null,null,null,null,null,null,null,null,null,null,null,null,null,null,null,null,null,null,null,null,null,null,null,null,null,null,null,null,null,null,null,null,null,null,null,null,null,null,null,null,null,null,null,null,null,null,null,null,null,null,null,null,null,null,null,null,null,null,null,null,null,null,null,null,null,null,null,null,null,null,null,null,null,null,null,null,null,null,null,null,null,null,null,null,null,null,null,null,null,null,null,null,null,null,null,null,null,null,null,null,null,null,null,null,null,null,null,null,null,null,null,null,null,0,0,0,null,null,null,6]
[null,null,null,null,null,null,null,null,null,"2. Ecuación integrada en MS Excel",null,null,null,null,null,null,null,null,null,null,null,null,null,null,null,null,null,null,null,null,null,null,null,null,null,null,null,null,null,null,null,null,null,null,null,null,null,null,null,null,null,null,null,null,null,null,null,null,null,null,null,null,null,null,null,null,null,null,null,null,null,null,null,null,null,null,null,null,null,null,null,null,null,null,null,null,null,null,null,null,null,null,null,null,null,null,null,null,null,null,null,null,null,null,null,null,null,null,null,null,null,null,null,null,null,null,null,null,null,null,null,null,null,null,null,null,null,null,null,null,null,null,null,null,null,null,null,null,null,null,1,{"$f":"C15","v":"9.27"},{"$f":"EL6","v":"9.27"},null,null,null,9]
[null,"Número de Transecto:",null,null,null,null,null,null,null,null,null,null,null,null,null,null,null,null,null,null,null,null,null,null,null,null,null,null,null,null,null,null,null,null,null,null,null,null,null,null,null,null,null,null,null,null,null,null,null,null,null,null,null,null,null,null,null,null,null,null,null,null,null,null,null,null,null,null,null,null,null,null,null,null,null,null,null,null,null,null,null,null,null,null,null,null,null,null,null,null,null,null,null,null,null,null,null,null,null,null,null,null,null,null,null,null,null,null,null,null,null,null,null,null,null,null,null,null,null,null,null,null,null,null,null,null,null,null,null,null,null,null,null,null,null,null,null,null,null,null,{"$f":"IF(EK6=\"\",\"\",IF((EK6+1)>$H$4,\"\",EK6+1))","v":2},{"$f":"IF(EK7=\"\",\"\",EL6+$C$13)","v":20.61},{"$f":"EL7","v":20.61},null,null,null,10]
[null,null,null,null,null,null,null,{"$f":"INT(G8)","v":0},null,null,null,null,null,"> Sitios de muestreo en el transecto",null,null,null,null,null,null,null,null,null,null,null,null,null,null,null,null,null,null,null,null,null,null,null,null,null,null,null,null,null,null,null,null,null,null,null,null,null,null,null,null,null,null,null,null,null,null,null,null,null,null,null,null,null,null,null,null,null,null,null,null,null,null,null,null,null,null,null,null,null,null,null,null,null,null,null,null,null,null,null,null,null,null,null,null,null,null,null,null,null,null,null,null,null,null,null,null,null,null,null,null,null,null,null,null,null,null,null,null,null,null,null,null,null,null,null,null,null,null,null,null,null,null,null,null,null,null,{"$f":"IF(EK7=\"\",\"\",IF((EK7+1)>$H$4,\"\",EK7+1))","v":3},{"$f":"IF(EK8=\"\",\"\",EL7+$C$13)","v":31.95},31.95,null,null,null,12]
[null,"Municipios del Transecto:",null,null,null,null,null,0,null,null,null,null,null,"# Sitio","Rango de ubicación sitio (km)",null,null,null,null,null,null,null,null,null,null,null,null,null,null,null,null,null,null,null,null,null,null,null,null,null,null,null,null,null,null,null,null,null,null,null,null,null,null,null,null,null,null,null,null,null,null,null,null,null,null,null,null,null,null,null,null,null,null,null,null,null,null,null,null,null,null,null,null,null,null,null,null,null,null,null,null,null,null,null,null,null,null,null,null,null,null,null,null,null,null,null,null,null,null,null,null,null,null,null,null,null,null,null,null,null,null,null,null,null,null,null,null,null,null,null,null,null,null,null,null,null,null,null,null,null,4,43.29,43.29,null,null,null,15]
[null,null,null,null,null,null,null,null,null,null,null,null,null,0,"Ubicar cada sitio entre:",null,null,null,null,null,null,null,null,null,null,null,null,null,null,null,null,null,null,null,null,null,null,null,null,null,null,null,null,null,null,null,null,null,null,null,null,null,null,null,null,null,null,null,null,null,null,null,null,null,null,null,null,null,null,null,null,null,null,null,null,null,null,null,null,null,null,null,null,null,null,null,null,null,null,null,null,null,null,null,null,null,null,null,null,null,null,null,null,null,null,null,null,null,null,null,null,null,null,null,null,null,null,null,null,null,null,null,null,null,null,null,null,null,null,null,null,null,null,null,null,null,null,null,null,null,5,54.629999999999995,54.629999999999995]
[null,"Distancia del Transecto:",{"$f":"D11","v":100},100,null,null,null,null,null,null,null,null,null,{"$f":"IF(N10=\"\",\"\",IF((N10+1)>$H$4,\"\",N10+1))","v":1},{"$f":"IF('Muestreo Transectual NO Pond'!$N11=\"\",\"\",EL6-((LOG(EL6))/2))","v":8.7864601329277505},{"$f":"IF('Muestreo Transectual NO Pond'!$N11=\"\",\"\",EL6+((LOG(EL6))/2))","v":9.7535398670722486},null,null,null,null,null,null,null,null,null,null,null,null,null,null,null,null,null,null,null,null,null,null,null,null,null,null,null,null,null,null,null,null,null,null,null,null,null,null,null,null,null,null,null,null,null,null,null,null,null,null,null,null,null,null,null,null,null,null,null,null,null,null,null,null,null,null,null,null,null,null,null,null,null,null,null,null,null,null,null,null,null,null,null,null,null,null,null,null,null,null,null,null,null,null,null,null,null,null,null,null,null,null,null,null,null,null,null,null,null,null,null,null,null,null,null,null,null,null,null,null,null,null,null,null,6,65.97,65.97]
[null,null,null,null,null,null,null,null,null,null,null,null,null,{"$f":"IF(N11=\"\",\"\",IF((N11+1)>$H$4,\"\",N11+1))","v":2},{"$f":"IF('Muestreo Transectual NO Pond'!$N12=\"\",\"\",EL7-((LOG(EL7))/2))","v":19.952961004110392},{"$f":"IF('Muestreo Transectual NO Pond'!$N12=\"\",\"\",EL7+((LOG(EL7))/2))","v":21.267038995889607},null,null,null,null,null,null,null,null,null,null,null,null,null,null,null,null,null,null,null,null,null,null,null,null,null,null,null,null,null,null,null,null,null,null,null,null,null,null,null,null,null,null,null,null,null,null,null,null,null,null,null,null,null,null,null,null,null,null,null,null,null,null,null,null,null,null,null,null,null,null,null,null,null,null,null,null,null,null,null,null,null,null,null,null,null,null,null,null,null,null,null,null,null,null,null,null,null,null,null,null,null,null,null,null,null,null,null,null,null,null,null,null,null,null,null,null,null,null,null,null,null,null,null,null,7,77.31,77.31]
[null,"Distancia entre sitios:","11.34",null,null,null,null,null,null,null,null,null,null,3,{"$f":"IF('Muestreo Transectual NO Pond'!$N13=\"\",\"\",EL8-((LOG(EL8))/2))","v":31.197764568752788},{"$f":"IF('Muestreo Transectual NO Pond'!$N13=\"\",\"\",EL8+((LOG(EL8))/2))","v":32.70223543124721},null,null,null,null,null,null,null,null,null,null,null,null,null,null,null,null,null,null,null,null,null,null,null,null,null,null,null,null,null,null,null,null,null,null,null,null,null,null,null,null,null,null,null,null,null,null,null,null,null,null,null,null,null,null,null,null,null,null,null,null,null,null,null,null,null,null,null,null,null,null,null,null,null,null,null,null,null,null,null,null,null,null,null,null,null,null,null,null,null,null,null,null,null,null,null,null,null,null,null,null,null,null,null,null,null,null,null,null,null,null,null,null,null,null,null,null,null,null,null,null,null,null,null,null,8,88.65,88.65]
[null,null,null,null,null,null,null,null,null,null,null,null,null,4,{"$f":"IF('Muestreo Transectual NO Pond'!$N14=\"\",\"\",EL9-((LOG(EL9))/2))","v":42.471806207093422},{"$f":"IF('Muestreo Transectual NO Pond'!$N14=\"\",\"\",EL9+((LOG(EL9))/2))","v":44.108193792906576},null,null,null,null,null,null,null,null,null,null,null,null,null,null,null,null,null,null,null,null,null,null,null,null,null,null,null,null,null,null,null,null,null,null,null,null,null,null,null,null,null,null,null,null,null,null,null,null,null,null,null,null,null,null,null,null,null,null,null,null,null,null,null,null,null,null,null,null,null,null,null,null,null,null,null,null,null,null,null,null,null,null,null,null,null,null,null,null,null,null,null,null,null,null,null,null,null,null,null,null,null,null,null,null,null,null,null,null,null,null,null,null,null,null,null,null,null,null,null,null,null,null,null,null,9,99.990000000000009,99.990000000000009]
[null,"Distancia Inicial:","9.27",null,null,null,null,null,null,null,null,null,null,5,{"$f":"IF('Muestreo Transectual NO Pond'!$N15=\"\",\"\",EL10-((LOG(EL10))/2))","v":53.761284399742706},{"$f":"IF('Muestreo Transectual NO Pond'!$N15=\"\",\"\",EL10+((LOG(EL10))/2))","v":55.498715600257285},null,null,null,null,null,null,null,null,null,null,null,null,null,null,null,null,null,null,null,null,null,null,null,null,null,null,null,null,null,null,null,null,null,null,null,null,null,null,null,null,null,null,null,null,null,null,null,null,null,null,null,null,null,null,null,null,null,null,null,null,null,null,null,null,null,null,null,null,null,null,null,null,null,null,null,null,null,null,null,null,null,null,null,null,null,null,null,null,null,null,null,null,null,null,null,null,null,null,null,null,null,null,null,null,null,null,null,null,null,null,null,null,null,null,null,null,null,null,null,null,null,null,null,null,"","",""]
[null,null,null,null,null,null,null,null,null,null,null,null,null,6,{"$f":"IF('Muestreo Transectual NO Pond'!$N16=\"\",\"\",EL11-((LOG(EL11))/2))","v":65.060326757959771},{"$f":"IF('Muestreo Transectual NO Pond'!$N16=\"\",\"\",EL11+((LOG(EL11))/2))","v":66.879673242040226},null,null,null,null,null,null,null,null,null,null,null,null,null,null,null,null,null,null,null,null,null,null,null,null,null,null,null,null,null,null,null,null,null,null,null,null,null,null,null,null,null,null,null,null,null,null,null,null,null,null,null,null,null,null,null,null,null,null,null,null,null,null,null,null,null,null,null,null,null,null,null,null,null,null,null,null,null,null,null,null,null,null,null,null,null,null,null,null,null,null,null,null,null,null,null,null,null,null,null,null,null,null,null,null,null,null,null,null,null,null,null,null,null,null,null,null,null,null,null,null,null,null,null,null,"","",""]
[null,null,null,null,null,null,null,null,null,null,null,null,null,7,{"$f":"IF('Muestreo Transectual NO Pond'!$N17=\"\",\"\",EL12-((LOG(EL12))/2))","v":76.365882163364716},{"$f":"IF('Muestreo Transectual NO Pond'!$N17=\"\",\"\",EL12+((LOG(EL12))/2))","v":78.254117836635288},null,null,null,null,null,null,null,null,null,null,null,null,null,null,null,null,null,null,null,null,null,null,null,null,null,null,null,null,null,null,null,null,null,null,null,null,null,null,null,null,null,null,null,null,null,null,null,null,null,null,null,null,null,null,null,null,null,null,null,null,null,null,null,null,null,null,null,null,null,null,null,null,null,null,null,null,null,null,null,null,null,null,null,null,null,null,null,null,null,null,null,null,null,null,null,null,null,null,null,null,null,null,null,null,null,null,null,null,null,null,null,null,null,null,null,null,null,null,null,null,null,null,null,null,"","",""]
[null,null,null,null,null,null,null,null,null,null,null,null,null,8,{"$f":"IF('Muestreo Transectual NO Pond'!$N18=\"\",\"\",EL13-((LOG(EL13))/2))","v":87.676160630031532},{"$f":"IF('Muestreo Transectual NO Pond'!$N18=\"\",\"\",EL13+((LOG(EL13))/2))","v":89.623839369968479},null,null,null,null,null,null,null,null,null,null,null,null,null,null,null,null,null,null,null,null,null,null,null,null,null,null,null,null,null,null,null,null,null,null,null,null,null,null,null,null,null,null,null,null,null,null,null,null,null,null,null,null,null,null,null,null,null,null,null,null,null,null,null,null,null,null,null,null,null,null,null,null,null,null,null,null,null,null,null,null,null,null,null,null,null,null,null,null,null,null,null,null,null,null,null,null,null,null,null,null,null,null,null,null,null,null,null,null,null,null,null,null,null,null,null,null,null,null,null,null,null,null,null,null,"","",""]
[null,null,null,null,null,null,null,null,null,null,null,null,null,9,{"$f":"IF('Muestreo Transectual NO Pond'!$N19=\"\",\"\",EL14-((LOG(EL14))/2))","v":98.990021715809917},{"$f":"IF('Muestreo Transectual NO Pond'!$N19=\"\",\"\",EL14+((LOG(EL14))/2))","v":100.9899782841901},null,null,null,null,null,null,null,null,null,null,null,null,null,null,null,null,null,null,null,null,null,null,null,null,null,null,null,null,null,null,null,null,null,null,null,null,null,null,null,null,null,null,null,null,null,null,null,null,null,null,null,null,null,null,null,null,null,null,null,null,null,null,null,null,null,null,null,null,null,null,null,null,null,null,null,null,null,null,null,null,null,null,null,null,null,null,null,null,null,null,null,null,null,null,null,null,null,null,null,null,null,null,null,null,null,null,null,null,null,null,null,null,null,null,null,null,null,null,null,null,null,null,null,null,"","",""]
[null,null,null,null,null,null,null,null,null,null,null,null,null,"",{"$f":"IF('Muestreo Transectual NO Pond'!$N20=\"\",\"\",EL15-((LOG(EL15))/2))","v":""},{"$f":"IF('Muestreo Transectual NO Pond'!$N20=\"\",\"\",EL15+((LOG(EL15))/2))","v":""},null,null,null,null,null,null,null,null,null,null,null,null,null,null,null,null,null,null,null,null,null,null,null,null,null,null,null,null,null,null,null,null,null,null,null,null,null,null,null,null,null,null,null,null,null,null,null,null,null,null,null,null,null,null,null,null,null,null,null,null,null,null,null,null,null,null,null,null,null,null,null,null,null,null,null,null,null,null,null,null,null,null,null,null,null,null,null,null,null,null,null,null,null,null,null,null,null,null,null,null,null,null,null,null,null,null,null,null,null,null,null,null,null,null,null,null,null,null,null,null,null,null,null,null,"","",""]
[null,null,3,null,6,null,9,10,12,null,15,null,null,"",{"$f":"IF('Muestreo Transectual NO Pond'!$N21=\"\",\"\",EL16-((LOG(EL16))/2))","v":""},{"$f":"IF('Muestreo Transectual NO Pond'!$N21=\"\",\"\",EL16+((LOG(EL16))/2))","v":""}]
[null,{"$f":"TEXT((A26)/(H4-1),\"0.00\")","v":"11.81"},null,null,null,{"$f":"\"   \"&TEXT(B22,\"0.0\")&\"km\"&\" \"&\"+/-\"&TEXT(LOG(B22),\"0.00\") & \"km\"","v":"   11.8km +/-1.07km"},null,null,null,null,null,null,null,"",{"$f":"IF('Muestreo Transectual NO Pond'!$N22=\"\",\"\",EL17-((LOG(EL17))/2))","v":""},{"$f":"IF('Muestreo Transectual NO Pond'!$N22=\"\",\"\",EL17+((LOG(EL17))/2))","v":""},null,null,null,null,null,null,null,null,null,null,null,null,null,null,null,null,null,null,null,null,null,null,null,null,null,null,null,null,null,null,null,null,null,null,null,null,null,null,null,null,null,null,null,null,null,null,null,null,null,null,null,null,null,null,null,null,null,null,null,null,null,null,null,null,null,null,null,null,null,null,null,null,null,null,null,null,null,null,null,null,null,null,null,null,null,null,null,null,null,null,null,null,null,null,null,null,null,null,null,null,null,null,null,{"$f":"L18","v":0}]
[null,null,null,null,null,{"$f":"\"   \"&TEXT(B24,\"0.0\")&\"km\"&\" \"&\"+/-\"&TEXT(LOG(B24),\"0.00\") & \"km\"","v":"   5.5km +/-0.74km"},null,null,null,null,null,null,null,"",{"$f":"IF('Muestreo Transectual NO Pond'!$N23=\"\",\"\",EL18-((LOG(EL18))/2))","v":""},{"$f":"IF('Muestreo Transectual NO Pond'!$N23=\"\",\"\",EL18+((LOG(EL18))/2))","v":""}]
[null,{"$f":"TEXT(A27,\"0.00\")","v":"5.48"},null,null,null,null,null,null,null,null,null,null,null,"",{"$f":"IF('Muestreo Transectual NO Pond'!$N24=\"\",\"\",EL19-((LOG(EL19))/2))","v":""},{"$f":"IF('Muestreo Transectual NO Pond'!$N24=\"\",\"\",EL19+((LOG(EL19))/2))","v":""}]
[null,null,null,null,null,null,null,null,null,null,null,null,null,"",{"$f":"IF('Muestreo Transectual NO Pond'!$N25=\"\",\"\",EL20-((LOG(EL20))/2))","v":""},{"$f":"IF('Muestreo Transectual NO Pond'!$N25=\"\",\"\",EL20+((LOG(EL20))/2))","v":""}]
[{"$f":"D11-A27","v":94.515630427650109}]
[{"$f":"RANDBETWEEN(1,10)+RAND()","v":5.4843695723498911}]
[null,null,null,null,null,null,null,null,null,null,null,null,null,{"$f":"B22","v":"11.81"}]
[]
[null,null,null,null,null,null,null,null,null,null,null,null,null,{"$f":"B24","v":"5.48"}]